Cogmind - Beta 11 X8 @@@ ROGUE MODE // 2021.11.24 @ 00:12:35 Player: szymekc Result: Destroyed by H-77 Assassin with High-powered Shotgun Performance ------------- Evolutions (5) 2500 Regions Visited (20) 4000 Robots Destroyed (22) 110 Value Destroyed (784) 784 Prototype IDs (54) 1080 Alien Tech Used (2) 400 Bonus (1279) 1279 TOTAL SCORE: 10153 Bonus ------- High Alert Combat Kills 21 Follower Combat Kills 58 Aligned with FarCom 300 Met Data Miner 300 Met Imprinter 300 Met Zhirov 300 Cogmind --------- Core Integrity 0/1000 Matter 185/300 Energy 99/100 System Corruption 6% Temperature Cool (0) Movement Core (50) Location -4/Proximity Caves Parts ------- > --- POWER (1) -------- (None) > --- PROPULSION (4) --- Advanced Myomer Leg Advanced Myomer Leg Advanced Myomer Leg > --- UTILITY (10) ----- Advanced Signal Interpreter Advanced Terrain Scan Processor Advanced Melee Analysis Suite Improved Core Analyzer Improved Hacking Suite Advanced System Shield > --- WEAPON (2) ------- Chainsword > --- INVENTORY (5) ---- Micro Fission Core Heavy Antimatter Reactor Improved Matter Compressor (0) Transdimensional Reconstructor Improved Proton Missile Launcher Peak State ------------ > --- POWER ------------ F-cell Engine > --- PROPULSION ------- Flying Fortress v7 > --- UTILITY ---------- Medium Storage Unit Advanced Terrain Scanner Advanced Terrain Scan Processor Advanced Melee Analysis Suite Layered Medium Armor Plating Makeshift Hacking Suite Improved Hacking Suite System Shield > --- WEAPON ----------- Heavy Pick Heavy Pick > --- INVENTORY -------- Matter Compressor Triangulator Advanced Signal Interpreter Improved Hacking Suite Heart of Steel Improved Proton Missile Launcher Heavy Rocket Launcher [Rating: 85] Favorites ----------- Power Makeshift Power Source Engine Makeshift Power Source Reactor Heavy Antimatter Reactor Propulsion Flying Fortress v7 Leg Aluminum Leg Hover Unit Cooled Aerolev Unit Flight Unit Flying Fortress v7 Utility Medium Storage Unit Device Structural Scanner Storage Medium Storage Unit Processor Advanced Terrain Scan Processor Hackware Improved Hacking Suite Protection Hardened Medium Armor Plating Weapon Heavy Pick Energy Gun Medium Laser Energy Cannon Neutron Cannon Ballistic Gun Assault Rifle Ballistic Cannon Gauss Cannon Special Weapon Remote Datajack Impact Weapon Power Maul Slashing Weapon Chainsword Piercing Weapon Heavy Pick Build | -11 -10 -10 -10 -9 -8 -7 -7 -7 -7 -6 -6 -6 -6 -6 -5 -5 -5 -5 -5 -4 ------- Run | Scr Mat Min Exi Min Mat Fac Low Low Dat Pro Fac Low Low Zio Pro Fac Upp Upp Zhi Pro Slots Evolved 10 | . . . . . 4 2 . . . . 2 . . . . 2 . . . . Power . | . . . . . . . . . . . . . . . . . . . . . Propulsion 2 | . . . . . 2 . . . . . . . . . . . . . . . Utility 8 | . . . . . 2 2 . . . . 2 . . . . 2 . . . . Weapon . | . . . . . . . . . . . . . . . . . . . . . Parts Attached 69 | . 1 2 1 1 5 13 1 2 . 6 15 1 . 3 2 7 1 . 7 1 Power 8 | . . 1 . . . 2 1 . . 1 1 . . . . 1 . . 1 . Engine 7 | . . 1 . . . 2 1 . . 1 1 . . . . 1 . . . . Core . | . . . . . . . . . . . . . . . . . . . . . Reactor 1 | . . . . . . . . . . . . . . . . . . . 1 . Propulsion 7 | . . . . . 1 . . . . . . . . . . 2 . . 3 1 Treads . | . . . . . . . . . . . . . . . . . . . . . Leg 4 | . . . . . . . . . . . . . . . . . . . 3 1 Wheel . | . . . . . . . . . . . . . . . . . . . . . Hover 1 | . . . . . . . . . . . . . . . . 1 . . . . Flight 2 | . . . . . 1 . . . . . . . . . . 1 . . . . Utility 36 | . 1 . 1 . 3 7 . 2 . 4 9 1 . 1 2 2 1 . 2 . Device 13 | . 1 . . . 2 5 . . . . 3 . . . 1 . 1 . . . Storage 5 | . . . 1 . . 1 . . . . 2 . . . . . . . 1 . Processor 5 | . . . . . . . . . . . 1 1 . 1 1 1 . . . . Hackware 6 | . . . . . 1 . . 1 . . 2 . . . . 1 . . 1 . Protection 7 | . . . . . . 1 . 1 . 4 1 . . . . . . . . . Artifact . | . . . . . . . . . . . . . . . . . . . . . Weapon 18 | . . 1 . 1 1 4 . . . 1 5 . . 2 . 2 . . 1 . Energy Gun . | . . . . . . . . . . . . . . . . . . . . . Energy Cannon 2 | . . . . . . . . . . 1 1 . . . . . . . . . Ballistic Gun 3 | . . 1 . . 1 1 . . . . . . . . . . . . . . Ballistic Cannon 1 | . . . . . . 1 . . . . . . . . . . . . . . Launcher . | . . . . . . . . . . . . . . . . . . . . . Special Weapon 2 | . . . . . . . . . . . 2 . . . . . . . . . Impact Weapon 3 | . . . . 1 . 2 . . . . . . . . . . . . . . Slashing Weapon 2 | . . . . . . . . . . . . . . . . 1 . . 1 . Piercing Weapon 5 | . . . . . . . . . . . 2 . . 2 . 1 . . . . Special Melee Weapon . | . . . . . . . . . . . . . . . . . . . . . Unidentified Prototypes 9 | . . . . . . 1 . . . 1 2 . . . 1 1 . . 3 . Parts Lost 12 | . . . . . . . . 2 . 2 . . . . 2 5 1 . . . Power 1 | . . . . . . . . . . 1 . . . . . . . . . . Propulsion 2 | . . . . . . . . . . . . . . . 1 1 . . . . Utility 7 | . . . . . . . . 2 . 1 . . . . 1 2 1 . . . Weapon 2 | . . . . . . . . . . . . . . . . 2 . . . . Highest Loss Streak 2 | . . . . . . . . 2 . 2 . . . . 1 2 1 . . . Average Slot Usage (%) 76 | . 99 100 100 100 68 71 76 74 76 74 78 80 80 79 72 44 33 29 49 59 Engine 7 | . 14 14 14 14 9 7 7 7 7 6 6 6 6 6 4 1 . . . . Leg 6 | . 28 28 28 28 . . . . . . . . . . . . . . 8 17 Flight 4 | . . . . . 9 7 7 7 7 7 6 6 6 6 4 2 . . . . Device 9 | . 13 14 14 14 18 21 23 10 7 7 5 6 6 6 5 . 3 . . . Storage 7 | . 14 14 14 14 9 7 7 7 7 7 6 6 6 6 4 . . . 2 . Processor 7 | . . . . . . . . . . . 5 12 13 13 14 19 23 23 23 23 Hackware 12 | . . . . . 5 7 7 11 15 15 24 20 20 20 19 13 5 5 7 11 Protection 4 | . . . . . . 3 7 13 15 14 7 6 6 6 4 . . . . . Energy Gun 3 | . 28 16 14 12 . . . . . . . . . . . . . . . . Ballistic Gun 2 | . . 11 14 14 9 2 . . . . . . . . . . . . . . Ballistic Cannon 1 | . . . . . . 4 7 7 7 3 . . . . . . . . . . Impact Weapon 2 | . . . . 1 9 7 7 7 7 7 2 . . . . . . . . . Piercing Weapon 4 | . . . . . . . . . . . 8 13 13 12 11 3 . . . . Naked Turns . | . . . . . . . . . . . . . . . . . . . . . Heaviest Build 48 | 14 15 15 19 19 22 36 40 46 46 48 48 37 37 37 37 13 1 . 25 3 Greatest Support 90 | 20 20 20 20 20 56 50 50 50 50 50 50 50 50 50 50 13 3 3 90 3 Greatest Overweight (x) 4 | . . . . . . . . . . . . . . . 4 . . . . . Average Overweight (x) . | . . . . . . . . . . . . . . . . . . . . . Largest Inventory Capacity 10 | . 8 8 10 10 10 10 10 10 10 10 10 10 10 10 10 5 5 5 5 5 Average Capacity 8 | . 8 8 8 10 10 10 10 10 10 10 10 10 10 10 8 5 5 5 5 5 Most Carried 10 | . 8 8 9 10 10 10 10 10 10 10 10 10 10 10 10 5 5 5 5 5 Average Carried 8 | . 6 7 8 9 7 9 10 9 10 9 9 9 10 9 8 3 4 4 4 4 Final Capacity 10 | 8 8 8 10 10 10 10 10 10 10 10 10 10 10 10 5 5 5 5 5 5 Final Carried 10 | 6 8 8 9 10 9 10 10 10 10 10 10 10 10 10 5 4 4 5 5 5 Class Distribution -------------------- 47% | Hacker-Mutant 34% | Mutant 9% | Infiltrator-Mutant 7% | Hacker-Scout Dominant Class ---------------- Mutant | -10/Materials Mutant | -10/Mines Mutant | -10/Exiles Mutant | -9/Mines Mutant | -8/Materials Mutant | -7/Factory Infiltrator-Mutant | -7/Lower Caves Hacker-Mutant | -7/Lower Caves Hacker-Mutant | -7/Data Miner Hacker-Mutant | -6/Proximity Caves Hacker-Mutant | -6/Factory Hacker-Mutant | -6/Lower Caves Hacker-Mutant | -6/Lower Caves Hacker-Mutant | -6/Zion Hacker-Mutant | -5/Proximity Caves Hacker-Mutant | -5/Factory Mutant | -5/Upper Caves Mutant | -5/Upper Caves Hacker-Mutant | -5/Zhirov Hacker-Mutant | -4/Proximity Caves Resources | -11 -10 -10 -10 -9 -8 -7 -7 -7 -7 -6 -6 -6 -6 -6 -5 -5 -5 -5 -5 -4 ----------- Run | Scr Mat Min Exi Min Mat Fac Low Low Dat Pro Fac Low Low Zio Pro Fac Upp Upp Zhi Pro Matter Collected 1175 | 200 10 95 70 . . 22 214 50 . 40 270 14 . 30 . 148 12 . . . Remotely . | . . . . . . . . . . . . . . . . . . . . . Salvage Created 702 | . 154 . . . . 22 18 77 . 69 95 . 20 . 96 151 . . . . Parts 31 | . 3 . . . . . 1 4 . . 5 . 1 . 7 10 . . . . Haulers Intercepted . | . . . . . . . . . . . . . . . . . . . . . Recyclers Shooed . | . . . . . . . . . . . . . . . . . . . . . Parts Field Recycled . | . . . . . . . . . . . . . . . . . . . . . Retrieved Matter . | . . . . . . . . . . . . . . . . . . . . . Parts Self-Destructed 39 | . . . . . . . 7 3 . 18 . . 1 . 9 . 1 . . . Prevented 3 | . . . . . . . 1 1 . . . . . . . . 1 . . . Kills | -11 -10 -10 -10 -9 -8 -7 -7 -7 -7 -6 -6 -6 -6 -6 -5 -5 -5 -5 -5 -4 ------- Run | Scr Mat Min Exi Min Mat Fac Low Low Dat Pro Fac Low Low Zio Pro Fac Upp Upp Zhi Pro Combat Hostiles Destroyed 21 | . 4 . . . . . 1 2 . 1 3 . 1 . 4 5 . . . . Melee 14 | . . . . . . . . 2 . . 2 . 1 . 4 5 . . . . Guns 3 | . 3 . . . . . . . . . . . . . . . . . . . Cannons 1 | . . . . . . . 1 . . . . . . . . . . . . . Classes Destroyed 4 | . 1 . . . . 1 1 1 . . . . . . . . . . . . Operator 1 | . . . . . . 1 . . . . . . . . . . . . . . Swarmer 12 | . . . . . . . . 1 . . 2 . 1 . 4 4 . . . . Grunt 5 | . 4 . . . . . . . . 1 . . . . . . . . . . Programmer 4 | . . . . . . . 1 1 . . 1 . . . . 1 . . . . Best Kill Streak 4 | . 2 . . . . 1 1 1 . 1 1 . 1 . 4 4 . . . . Combat Bots Only 4 | . 2 . . . . . 1 1 . 1 1 . 1 . 4 4 . . . . Max Kills in Single Turn 1 | . 1 . . . . 1 1 1 . 1 1 . 1 . 1 1 . . . . Gunslinging . | . . . . . . . . . . . . . . . . . . . . . Exploded . | . . . . . . . . . . . . . . . . . . . . . Melee 1 | . . . . . . . . 1 . . 1 . 1 . 1 1 . . . . Uniques/NPCs Destroyed . | . . . . . . . . . . . . . . . . . . . . . Combat | -11 -10 -10 -10 -9 -8 -7 -7 -7 -7 -6 -6 -6 -6 -6 -5 -5 -5 -5 -5 -4 -------- Run | Scr Mat Min Exi Min Mat Fac Low Low Dat Pro Fac Low Low Zio Pro Fac Upp Upp Zhi Pro Damage Taken 3905 | . 256 66 . . . 111 45 349 . 551 476 . 49 . 707 1071 117 59 . 48 Core 1626 | . 69 28 . . . 31 . 54 . 65 121 . . . 245 837 102 59 . 15 Absorbed by Shields . | . . . . . . . . . . . . . . . . . . . . . Core Remaining (%) 79 | 100 . . . 61 100 . . . . 78 . . . . 56 . . . . . Volleys Fired 43 | . 20 5 . . . . 6 4 . . 8 . . . . . . . . . Largest 2 | . 2 2 . . . . 1 1 . . 1 . . . . . . . . . Hottest 100 | . 100 100 . . . . 48 48 . . 30 . . . . . . . . . Shots Fired 68 | . 40 10 . . . . 6 4 . . 8 . . . . . . . . . Gun 50 | . 40 10 . . . . . . . . . . . . . . . . . . Cannon 10 | . . . . . . . 6 4 . . . . . . . . . . . . Launcher . | . . . . . . . . . . . . . . . . . . . . . Special 8 | . . . . . . . . . . . 8 . . . . . . . . . Kinetic 10 | . . . . . . . 6 4 . . . . . . . . . . . . Thermal 50 | . 40 10 . . . . . . . . . . . . . . . . . . Explosive . | . . . . . . . . . . . . . . . . . . . . . Electromagnetic . | . . . . . . . . . . . . . . . . . . . . . Robot Hit Streak 9 | . 9 2 . . . . 4 1 . . 1 . . . . . . . . . Robot Miss Streak 6 | . 2 6 . . . . 1 2 . . 5 . . . . . . . . . Penetration Max . | . . . . . . . . . . . . . . . . . . . . . Secondary Targets 1 | . 1 . . . . . . . . . . . . . . . . . . . Max Gunslinging Chain 1 | . 1 . . . . . . . . . . . . . . . . . . . Shots Hit Robots 85 | . 31 2 . . . 1 8 6 . 6 11 . 1 . 6 13 . . . . Core Hits 23 | . 7 . . . . . 1 3 . . 1 . 1 . 5 5 . . . . Critical Kills . | . . . . . . . . . . . . . . . . . . . . . Critical Parts Destroyed . | . . . . . . . . . . . . . . . . . . . . . Critical Strikes 6 | . 4 . . . . . 1 . . . . . . . 1 . . . . . Burn 4 | . 4 . . . . . . . . . . . . . . . . . . . Blast 1 | . . . . . . . 1 . . . . . . . . . . . . . Puncture 1 | . . . . . . . . . . . . . . . 1 . . . . . Melee Attacks 104 | . . . . . 3 4 6 6 . 9 17 3 4 1 17 33 . . . 1 Impact 39 | . . . . . 3 4 6 6 . 9 11 . . . . . . . . . Slashing 12 | . . . . . . . . . . . . . . . . 11 . . . 1 Piercing 53 | . . . . . . . . . . . 6 3 4 1 17 22 . . . . Sneak Attacks 2 | . . . . . . . . . . 2 . . . . . . . . . . Combat Hostiles 1 | . . . . . . . . . . 1 . . . . . . . . . . Follow-up Attacks 5 | . . . . . . . . . . . 2 . 1 . 2 . . . . . Damage Inflicted 2353 | . 386 25 . . . 43 275 169 . 335 378 . 30 . 210 502 . . . . Guns 411 | . 386 25 . . . . . . . . . . . . . . . . . . Cannons 180 | . . . . . . . 180 . . . . . . . . . . . . . Explosions . | . . . . . . . . . . . . . . . . . . . . . Melee 1718 | . . . . . . 43 95 169 . 335 334 . 30 . 210 502 . . . . Ramming 44 | . . . . . . . . . . . 44 . . . . . . . . . Kinetic 180 | . . . . . . . 180 . . . . . . . . . . . . . Thermal 411 | . 386 25 . . . . . . . . . . . . . . . . . . Explosive . | . . . . . . . . . . . . . . . . . . . . . Electromagnetic . | . . . . . . . . . . . . . . . . . . . . . Impact 896 | . . . . . . 43 95 169 . 335 254 . . . . . . . . . Slashing 147 | . . . . . . . . . . . . . . . . 147 . . . . Piercing 675 | . . . . . . . . . . . 80 . 30 . 210 355 . . . . Highest Corruption 6 | . . . . . . . 1 3 3 3 . . . . . 6 6 6 6 6 Average Corruption 3 | . . . . . . . 1 2 3 3 . . . . . 3 6 6 6 6 Corruption Purged . | . . . . . . . . . . . . . . . . . . . . . Effects 18 | . . . . . . . 1 2 1 2 . . . . . . 3 3 4 2 Message Errors 4 | . . . . . . . 1 . . 1 . . . . . . 1 . . 1 Matter Fused 6 | . . . . . . . . 2 . . . . . . . . 1 1 1 1 Energy Discharges 4 | . . . . . . . . . 1 1 . . . . . . . . 2 . Data Loss (minor) 2 | . . . . . . . . . . . . . . . . . . 2 . . Data Loss (major) 2 | . . . . . . . . . . . . . . . . . 1 . 1 . Overload Shots . | . . . . . . . . . . . . . . . . . . . . . Overflow Damage 243 | . . . . . . 8 31 18 . 102 60 . . . 13 11 . . . . Projectiles 25 | . . . . . . . 25 . . . . . . . . . . . . . Explosions . | . . . . . . . . . . . . . . . . . . . . . Melee 218 | . . . . . . 8 6 18 . 102 60 . . . 13 11 . . . . Knockbacks 4 | . . . . . . . 2 . . 2 . . . . . . . . . . Impact 3 | . . . . . . . 1 . . 2 . . . . . . . . . . Kinetic 1 | . . . . . . . 1 . . . . . . . . . . . . . Secondary . | . . . . . . . . . . . . . . . . . . . . . Self-Inflicted Damage 44 | . . . . . . . . . . . 44 . . . . . . . . . Shots . | . . . . . . . . . . . . . . . . . . . . . Rammed . | . . . . . . . . . . . . . . . . . . . . . Targets Rammed . | . . . . . . . . . . . . . . . . . . . . . Kicked . | . . . . . . . . . . . . . . . . . . . . . Crushed . | . . . . . . . . . . . . . . . . . . . . . Highest Temperature 424 | . 424 120 . . . . 72 107 . 4 76 . . . . . . 6 . . Average Temperature 134 | . 219 61 . . . . 32 50 . 2 33 . . . . . . 6 . . Received Heat Transfer 448 | . 114 . . . . 24 . 9 . 171 . . 12 . 18 18 9 73 . . Effects 3 | . 3 . . . . . . . . . . . . . . . . . . . Shutdowns 1 | . 1 . . . . . . . . . . . . . . . . . . . Energy Bleed 1 | . 1 . . . . . . . . . . . . . . . . . . . Short Circuit 1 | . 1 . . . . . . . . . . . . . . . . . . . Siege Activations . | . . . . . . . . . . . . . . . . . . . . . Robots Corrupted . | . . . . . . . . . . . . . . . . . . . . . Combat Hostiles . | . . . . . . . . . . . . . . . . . . . . . Parts Fried 6 | . . . . . . 3 . . . 2 1 . . . . . . . . . Impact Corruptions 10 | . . . . . . 1 1 1 . 3 4 . . . . . . . . . Robots Melted 1 | . 1 . . . . . . . . . . . . . . . . . . . Combat Hostiles 1 | . 1 . . . . . . . . . . . . . . . . . . . Parts Melted 4 | . 4 . . . . . . . . . . . . . . . . . . . Heat Transferred 1517 | . 1443 74 . . . . . . . . . . . . . . . . . . Parts Sabotaged . | . . . . . . . . . . . . . . . . . . . . . Parts Stolen . | . . . . . . . . . . . . . . . . . . . . . Parts Stripped . | . . . . . . . . . . . . . . . . . . . . . Power Chain Reactions . | . . . . . . . . . . . . . . . . . . . . . Missiles Intercepted . | . . . . . . . . . . . . . . . . . . . . . Alert | -11 -10 -10 -10 -9 -8 -7 -7 -7 -7 -6 -6 -6 -6 -6 -5 -5 -5 -5 -5 -4 ------- Run | Scr Mat Min Exi Min Mat Fac Low Low Dat Pro Fac Low Low Zio Pro Fac Upp Upp Zhi Pro Peak Influence 449 | . 145 74 . . 293 281 . . . . 449 . . . . 189 . . . . Initial 191 | . . 17 . . . 133 . . . . 191 . . . . 2 . . . . Average 153 | . 40 64 . . 164 184 . . . . 286 . . . . 48 . . . . Maximum Alert Level 2 | . . . . . 1 1 . . . . 2 . . . . . . . . . Low Security (%) 64 | . 100 100 . 100 38 58 . . . . 26 . . . . 100 . . . . Level 1 27 | . . . . . 61 41 . . . . 51 . . . . . . . . . Level 2 7 | . . . . . . . . . . . 22 . . . . . . . . . Level 3 . | . . . . . . . . . . . . . . . . . . . . . Level 4 . | . . . . . . . . . . . . . . . . . . . . . Level 5 . | . . . . . . . . . . . . . . . . . . . . . High Security . | . . . . . . . . . . . . . . . . . . . . . Max Security . | . . . . . . . . . . . . . . . . . . . . . Squads Dispatched 16 | . 2 . . . 1 3 . 1 . . 3 . . . . 6 . . . . Investigation 4 | . 1 . . . 1 . . . . . . . . . . 2 . . . . Extermination 3 | . . . . . . 1 . . . . 1 . . . . 1 . . . . Reinforcement 8 | . 1 . . . . 2 . . . . 2 . . . . 3 . . . . Assault 1 | . . . . . . . . 1 . . . . . . . . . . . . Garrison . | . . . . . . . . . . . . . . . . . . . . . Intercept . | . . . . . . . . . . . . . . . . . . . . . Construction Impeded . | . . . . . . . . . . . . . . . . . . . . . Haulers Reinforced . | . . . . . . . . . . . . . . . . . . . . . Active Scanning Responses . | . . . . . . . . . . . . . . . . . . . . . Cargo Convoy Interrupts . | . . . . . . . . . . . . . . . . . . . . . Stealth | -11 -10 -10 -10 -9 -8 -7 -7 -7 -7 -6 -6 -6 -6 -6 -5 -5 -5 -5 -5 -4 --------- Run | Scr Mat Min Exi Min Mat Fac Low Low Dat Pro Fac Low Low Zio Pro Fac Upp Upp Zhi Pro Distress Signals 5 | . 1 . . . 1 . . . . . 2 . . . . 1 . . . . Communications Jammed . | . . . . . . . . . . . . . . . . . . . . . Distress Signals . | . . . . . . . . . . . . . . . . . . . . . Times Spotted 150 | . 17 4 . . 4 7 3 10 . 27 25 . 2 . 14 26 6 3 . 2 Peak Tracking Total 15 | . 4 3 . . 3 4 1 12 . 13 9 . 3 . 7 15 7 3 . . Tactical Retreats 29 | . 2 1 . . 1 . 1 1 . 7 5 . 2 . 4 3 . 2 . . Traps | -11 -10 -10 -10 -9 -8 -7 -7 -7 -7 -6 -6 -6 -6 -6 -5 -5 -5 -5 -5 -4 ------- Run | Scr Mat Min Exi Min Mat Fac Low Low Dat Pro Fac Low Low Zio Pro Fac Upp Upp Zhi Pro Traps Triggered 2 | . 1 . . . . . . . . 1 . . . . . . . . . . Indirectly . | . . . . . . . . . . . . . . . . . . . . . Trap Hack Attempts . | . . . . . . . . . . . . . . . . . . . . . Triggered . | . . . . . . . . . . . . . . . . . . . . . Disarmed . | . . . . . . . . . . . . . . . . . . . . . Reprogrammed . | . . . . . . . . . . . . . . . . . . . . . Reused . | . . . . . . . . . . . . . . . . . . . . . Traps Extracted . | . . . . . . . . . . . . . . . . . . . . . Installed . | . . . . . . . . . . . . . . . . . . . . . Triggered 1 | . . . . . . . . . . . . . . . . . 1 . . . Machines | -11 -10 -10 -10 -9 -8 -7 -7 -7 -7 -6 -6 -6 -6 -6 -5 -5 -5 -5 -5 -4 ---------- Run | Scr Mat Min Exi Min Mat Fac Low Low Dat Pro Fac Low Low Zio Pro Fac Upp Upp Zhi Pro Machines Disabled 1 | . . . . . . . . . . 1 . . . . . . . . . . Max in Single Turn 1 | . . . . . . . . . . 1 . . . . . . . . . . Garrison Access 2 | . . . . . 1 . . . . . 1 . . . . . . . . . Machines Sabotaged . | . . . . . . . . . . . . . . . . . . . . . Garrisons Compromised . | . . . . . . . . . . . . . . . . . . . . . Overloaded Fab Kills . | . . . . . . . . . . . . . . . . . . . . . Hacking | -11 -10 -10 -10 -9 -8 -7 -7 -7 -7 -6 -6 -6 -6 -6 -5 -5 -5 -5 -5 -4 --------- Run | Scr Mat Min Exi Min Mat Fac Low Low Dat Pro Fac Low Low Zio Pro Fac Upp Upp Zhi Pro Machines Accessed 53 | . 1 . 3 . 2 10 . 1 4 1 14 2 . . . 6 1 1 7 . Terminals 22 | . 1 . . . 1 7 . . . . 8 . . . . 5 . . . . Fabricators 3 | . . . . . . 2 . . . . . . . . . 1 . . . . Repair Stations 3 | . . . . . . 1 . . . . 2 . . . . . . . . . Recycling Units 3 | . . . . . . . . . . . 3 . . . . . . . . . Scanalyzers . | . . . . . . . . . . . . . . . . . . . . . Garrison Access 2 | . . . . . 1 . . . . . 1 . . . . . . . . . Total Hacks 176 | . 4 . 25 . 11 23 . 1 29 1 32 2 . . . 24 1 1 22 . Successful 144 | . 3 . 25 . 6 14 . 1 29 1 23 2 . . . 16 1 1 22 . Failed 32 | . 1 . . . 5 9 . . . . 9 . . . . 8 . . . . Catastrophic 3 | . . . . . 1 1 . . . . 1 . . . . . . . . . Database Lockouts . | . . . . . . . . . . . . . . . . . . . . . Manual 41 | . 1 . 1 . 3 15 . . . . 7 . . . . 14 . . . . Terminals 67 | . 4 . . . 7 17 . . . . 18 . . . . 21 . . . . Fabricators 6 | . . . . . . 3 . . . . . . . . . 3 . . . . Repair Stations 7 | . . . . . . 3 . . . . 4 . . . . . . . . . Recycling Units 9 | . . . . . . . . . . . 9 . . . . . . . . . Scanalyzers . | . . . . . . . . . . . . . . . . . . . . . Garrison Access 5 | . . . . . 4 . . . . . 1 . . . . . . . . . Terminal Hacks 110 | . 3 . 25 . 4 5 . 1 29 1 7 2 . . . 9 1 1 22 . Record 47 | . . . 24 . . . . . 11 1 . . . . . . . 1 10 . Part Schematic 16 | . . . . . . . . . 12 . . . . . . . . . 4 . Robot Schematic 3 | . . . . . . . . . 3 . . . . . . . . . . . Robot Analysis 4 | . . . . . . . . . . . . . . . . . . . 4 . Prototype ID Bank 10 | . . . . . 1 1 . . 3 . . . . . . 1 . . 4 . Open Door 4 | . . . . . . . . 1 . . . 2 . . . . 1 . . . Open DSF 3 | . . . . . . 1 . . . . 2 . . . . . . . . . Level Access Points 1 | . . . . . . 1 . . . . . . . . . . . . . . Branch Access Points 5 | . 1 . . . 1 1 . . . . 1 . . . . 1 . . . . Alert Level 2 | . . . . . . 1 . . . . 1 . . . . . . . . . Unreport Threat 8 | . 2 . . . 1 . . . . . 2 . . . . 3 . . . . Locate Traps 1 | . . . . . 1 . . . . . . . . . . . . . . . Recall Investigation 2 | . . . . . . . . . . . . . . . . 2 . . . . Recall Reinforcements 1 | . . . . . . . . . . . 1 . . . . . . . . . Zone Layout 2 | . . . . . . . . . . . . . . . . 2 . . . . EX-Prototype ID Bank 1 | . . . 1 . . . . . . . . . . . . . . . . . Fabricator Hacks 3 | . . . . . . 1 . . . . . . . . . 2 . . . . Load Schematic 1 | . . . . . . . . . . . . . . . . 1 . . . . Build 2 | . . . . . . 1 . . . . . . . . . 1 . . . . Repair Station Hacks 4 | . . . . . . 1 . . . . 3 . . . . . . . . . Scan Component 3 | . . . . . . 1 . . . . 2 . . . . . . . . . Repair 1 | . . . . . . . . . . . 1 . . . . . . . . . Recycling Unit Hacks 8 | . . . . . . . . . . . 8 . . . . . . . . . Process 3 | . . . . . . . . . . . 3 . . . . . . . . . Report Inventory 3 | . . . . . . . . . . . 3 . . . . . . . . . Retrieve Matter 2 | . . . . . . . . . . . 2 . . . . . . . . . Scanalyzer . | . . . . . . . . . . . . . . . . . . . . . Garrison Access Hacks 1 | . . . . . . . . . . . 1 . . . . . . . . . Seal Access 1 | . . . . . . . . . . . 1 . . . . . . . . . Unauthorized Hacks 18 | . . . . . 2 7 . . . . 4 . . . . 5 . . . . Terminals 14 | . . . . . 1 5 . . . . 3 . . . . 5 . . . . Assimilate 2 | . . . . . . . . . . . 1 . . . . 1 . . . . Botnet 12 | . . . . . 1 5 . . . . 2 . . . . 4 . . . . Fabricators 1 | . . . . . . 1 . . . . . . . . . . . . . . Haulers 1 | . . . . . . 1 . . . . . . . . . . . . . . Repair Stations 2 | . . . . . . 1 . . . . 1 . . . . . . . . . Mechanics 2 | . . . . . . 1 . . . . 1 . . . . . . . . . Recycling Units . | . . . . . . . . . . . . . . . . . . . . . Scanalyzers . | . . . . . . . . . . . . . . . . . . . . . Garrison Access 1 | . . . . . 1 . . . . . . . . . . . . . . . Jam 1 | . . . . . 1 . . . . . . . . . . . . . . . Data Cores Recovered . | . . . . . . . . . . . . . . . . . . . . . Used . | . . . . . . . . . . . . . . . . . . . . . Hacking Detections 27 | . 1 . . . 2 9 . . . . 9 . . . . 6 . . . . Full Trace Events 2 | . . . . . . . . . . . . . . . . 2 . . . . Feedback Events . | . . . . . . . . . . . . . . . . . . . . . Feedback Blocked . | . . . . . . . . . . . . . . . . . . . . . Robot Schematics Acquired 7 | . . . . . . . . . 3 . . . . 4 . . . . . . Robots Built . | . . . . . . . . . . . . . . . . . . . . . Authchips . | . . . . . . . . . . . . . . . . . . . . . Time 99 | . . . . . . 99 . . . . . . . . . . . . . . Total Robot Build Rating . | . . . . . . . . . . . . . . . . . . . . . Part Schematics Acquired 29 | . . . . . . . . . 12 . . . . 13 . . . . 4 . Parts Built 2 | . . . . . . . . . . . . . . . . 2 . . . . Authchips . | . . . . . . . . . . . . . . . . . . . . . Time 39 | . . . . . . . . . . . . . . . . 39 . . . . Total Part Build Rating 14 | . . . . . . . . . . . . . . . . 14 . . . . Parts Repaired 1 | . . . . . . . . . . . 1 . . . . . . . . . Time 26 | . . . . . . . . . . . 26 . . . . . . . . . Parts Recycled . | . . . . . . . . . . . . . . . . . . . . . Recycled Matter 95 | . . . . . . . . . . . 95 . . . . . . . . . Retrieved Matter 56 | . . . . . . . . . . . 56 . . . . . . . . . Retrieved Components . | . . . . . . . . . . . . . . . . . . . . . Parts Scanalyzed . | . . . . . . . . . . . . . . . . . . . . . Part Schematics Acquired . | . . . . . . . . . . . . . . . . . . . . . Parts Damaged . | . . . . . . . . . . . . . . . . . . . . . Bothacking | -11 -10 -10 -10 -9 -8 -7 -7 -7 -7 -6 -6 -6 -6 -6 -5 -5 -5 -5 -5 -4 ------------ Run | Scr Mat Min Exi Min Mat Fac Low Low Dat Pro Fac Low Low Zio Pro Fac Upp Upp Zhi Pro Used RIF Installer . | . . . . . . . . . . . . . . . . . . . . . Robots Hacked 2 | . . . . . . . . . . . 2 . . . . . . . . . Non-combat 2 | . . . . . . . . . . . 2 . . . . . . . . . Combat . | . . . . . . . . . . . . . . . . . . . . . Robot Hacks Applied 2 | . . . . . . . . . . . 2 . . . . . . . . . parse_system 1 | . . . . . . . . . . . 1 . . . . . . . . . no_distress 1 | . . . . . . . . . . . 1 . . . . . . . . . Relay Couplers Released . | . . . . . . . . . . . . . . . . . . . . . Fabnet Peak Effective % . | . . . . . . . . . . . . . . . . . . . . . Robots Rewired . | . . . . . . . . . . . . . . . . . . . . . Allies Hacked . | . . . . . . . . . . . . . . . . . . . . . Hacks Repelled . | . . . . . . . . . . . . . . . . . . . . . Allies | -11 -10 -10 -10 -9 -8 -7 -7 -7 -7 -6 -6 -6 -6 -6 -5 -5 -5 -5 -5 -4 -------- Run | Scr Mat Min Exi Min Mat Fac Low Low Dat Pro Fac Low Low Zio Pro Fac Upp Upp Zhi Pro Total Allies 5 | . . 2 . . . . . . . 1 1 . . . . 1 . . . . Largest Group 2 | . . 2 . . . . . . . 1 1 . . . . 1 . . . . Highest-Rated Group 95 | . . 46 . . . . . . . 95 26 . . . . 10 . . . . Highest-Rated Ally 95 | . . 31 . . . . . . . 95 26 . . . . 10 . . . . Total Orders . | . . . . . . . . . . . . . . . . . . . . . Ally Attacks 27 | . . 17 . . . . . . . 10 . . . . . . . . . . Total Damage 505 | . . 86 . . . . . . . 419 . . . . . . . . . . Kills 9 | . . 4 . . . . . . . 5 . . . . . . . . . . Allies Corrupted . | . . . . . . . . . . . . . . . . . . . . . Allies Melted . | . . . . . . . . . . . . . . . . . . . . . Intel | -11 -10 -10 -10 -9 -8 -7 -7 -7 -7 -6 -6 -6 -6 -6 -5 -5 -5 -5 -5 -4 ------- Run | Scr Mat Min Exi Min Mat Fac Low Low Dat Pro Fac Low Low Zio Pro Fac Upp Upp Zhi Pro Robot Analysis Total 4 | . . . . . . . . . . . . . . . . . . . 4 . Derelict Logs Recovered 12 | . . . . 1 . . 2 1 . 1 . 2 2 2 . . . 1 . . Drone Launches . | . . . . . . . . . . . . . . . . . . . . . Drone Recoveries . | . . . . . . . . . . . . . . . . . . . . . Exploration | -11 -10 -10 -10 -9 -8 -7 -7 -7 -7 -6 -6 -6 -6 -6 -5 -5 -5 -5 -5 -4 ------------- Run | Scr Mat Min Exi Min Mat Fac Low Low Dat Pro Fac Low Low Zio Pro Fac Upp Upp Zhi Pro Turns Passed 5676 | . 297 223 375 294 139 388 317 183 44 325 915 302 159 335 562 339 124 139 148 68 Spaces Moved 8575 | 1 177 166 308 238 201 685 576 313 88 579 1593 581 299 642 813 508 228 276 181 122 Core 1065 | . . . . . . . . . . . . . . . 143 172 228 276 124 122 Treads . | . . . . . . . . . . . . . . . . . . . . . Legs 947 | 1 177 166 308 238 . . . . . . . . . . . . . . 57 . Wheels . | . . . . . . . . . . . . . . . . . . . . . Hover . | . . . . . . . . . . . . . . . . . . . . . Flight 6563 | . . . . . 201 685 576 313 88 579 1593 581 299 642 670 336 . . . . Fastest Speed 40 | 120 120 120 120 120 50 50 50 50 50 50 50 50 50 50 50 40 50 50 50 50 Average Speed 57 | 120 120 120 120 120 50 50 50 50 50 50 50 50 50 50 51 43 50 50 72 50 Slowest Speed 250 | 120 120 120 120 120 50 50 50 50 50 50 50 50 50 50 250 50 50 50 120 50 Overloaded Moves . | . . . . . . . . . . . . . . . . . . . . . Propulsion Burnouts . | . . . . . . . . . . . . . . . . . . . . . Robots Hopped 7 | . . . . . . . . . . . 3 . . . 4 . . . . . Cave-ins Triggered . | . . . . . . . . . . . . . . . . . . . . . Exploration Rate (%) 50 | 2 41 41 62 54 29 29 71 67 75 62 51 78 51 83 74 16 42 53 62 10 Regions Visited 20 Branch Regions 15 Pre-discovered Areas 11 | . . . 1 . . . . . 1 . . 1 2 3 . . . . 3 . Known Exits Taken 10 | . 1 . . . . 1 . . . 1 1 . . 1 1 1 1 1 1 . Unknown Exits Taken 10 | 1 . 1 1 1 1 . 1 1 1 . . 1 1 . . . . . . . Scrap Searched 18 | . . 1 . 2 . . . 4 . 3 . 3 1 4 . . . . . . Spaces Dug 32 | . . . . . 3 2 2 1 . 1 4 2 . . 4 12 . . . 1 Terrain Destroyed 37 | . . . . . 3 2 3 4 . 1 5 2 . . 4 12 . . . 1 Melee 32 | . . . . . 3 2 2 1 . 1 4 2 . . 4 12 . . . 1 Projectile 4 | . . . . . . . 1 3 . . . . . . . . . . . . AOE . | . . . . . . . . . . . . . . . . . . . . . Terrain Rammed 1 | . . . . . . . . . . . 1 . . . . . . . . . Walls Destroyed 1 | . . . . . . . . . . . 1 . . . . . . . . . Machines Disabled . | . . . . . . . . . . . . . . . . . . . . . Actions | -11 -10 -10 -10 -9 -8 -7 -7 -7 -7 -6 -6 -6 -6 -6 -5 -5 -5 -5 -5 -4 --------- Run | Scr Mat Min Exi Min Mat Fac Low Low Dat Pro Fac Low Low Zio Pro Fac Upp Upp Zhi Pro Total 9080 | . 221 182 316 247 234 727 589 325 87 600 1684 588 301 654 922 565 237 276 195 130 Wait 178 | . 22 1 1 5 21 . . . . . 27 1 . . 85 13 . . 2 . Move 8541 | . 176 165 307 237 200 684 575 312 87 578 1586 580 298 641 804 507 227 275 180 122 Hop 7 | . . . . . . . . . . . 3 . . . 4 . . . . . Pick Up 49 | . 2 4 2 2 2 10 . 1 . 1 12 1 . 4 3 2 . 1 1 1 Fast Attach 39 | . 1 1 . 1 2 6 1 1 . 5 7 . . 2 1 4 . . 7 . Attach 15 | . . 1 . . 2 1 . 1 . . 2 1 . . 1 3 1 . 1 1 Detach 8 | . . . . . 1 . . . . . 1 . . . 2 1 1 . . 2 Swap 17 | . . . 1 . 1 6 . . . 2 6 . . 1 . . . . . . Drop 73 | . . 5 5 2 2 16 1 . . 5 17 3 . 5 7 2 . . . 3 Fire 43 | . 20 5 . . . . 6 4 . . 8 . . . . . . . . . Melee 97 | . . . . . 3 4 6 6 . 9 14 2 3 1 15 33 . . . 1 Ram 1 | . . . . . . . . . . . 1 . . . . . . . . . Kick . | . . . . . . . . . . . . . . . . . . . . . Crush . | . . . . . . . . . . . . . . . . . . . . . Escape Stasis . | . . . . . . . . . . . . . . . . . . . . . Rewire 12 | . . . . . . . . . . . . . . . . . 8 . 4 . Trap . | . . . . . . . . . . . . . . . . . . . . . Miscellaneous . | . . . . . . . . . . . . . . . . . . . . . Route ------- -11/Scrapyard -10/Materials (discovered 3 exits: [*Mat] / *Min x2) -10/Mines -10/Exiles -9/Mines -8/Materials (discovered 2 exits: *Fac / Sto) -7/Factory (discovered 6 exits: *Fac x4 / *Low x2) -7/Lower Caves -7/Lower Caves (discovered 2 exits: *Fac / *Dat) -7/Data Miner -6/Proximity Caves -6/Factory (discovered 5 exits: *Fac x3 / *Low x2) -6/Lower Caves -6/Lower Caves -6/Zion -5/Proximity Caves -5/Factory (discovered 6 exits: Fac x2 / *Upp x2 / Ext x2) -5/Upper Caves -5/Upper Caves -5/Zhirov -4/Proximity Caves History --------- Turn | Location | Event 1 | -11/Scrapyard | Discovered new exit (range 0) 1 | -11/Scrapyard | Entered Materials 223 | -10/Materials | Identified exit to Mines 228 | -10/Materials | Discovered new exit (range 13) 298 | -10/Materials | Entered Mines 355 | -10/Mines | Build established: Mutant 391 | -10/Mines | Assembled infested the area 396 | -10/Mines | Assisted by a Guerilla fighting off Assembled 515 | -10/Mines | Deemed a non-threat by the Exiles lab entrance 515 | -10/Mines | Discovered new exit (range 6) 521 | -10/Mines | Entered Exiles 550 | -10/Exiles | Met 8R-AWN 572 | -10/Exiles | Met EX-HEX 605 | -10/Exiles | Met EX-BIN 664 | -10/Exiles | Aligned with FarCom system 665 | -10/Exiles | Given EX-Vault access code 693 | -10/Exiles | Opened EX-Vault 705 | -10/Exiles | Found Flying Fortress v7 741 | -10/Exiles | Warned to stay clear of 0b10 Research branches 776 | -10/Exiles | Met EX-DEC 783 | -10/Exiles | Learned location of Zion (-6) 887 | -10/Exiles | Discovered new exit (range 10) 896 | -10/Exiles | Left Exiles lab with Flying Fortress v7 896 | -10/Exiles | Entered Mines 911 | -9/Mines | Discovered new exit (range 9) 1022 | -9/Mines | Learned Materials terminal intel 1029 | -9/Mines | Received a Rocket Launcher from a helpful Derelict 1190 | -9/Mines | Entered Materials 1190 | -8/Materials | Evolved 4 slots: Propulsion x2, Utility x2 1191 | -8/Materials | Loaded intel: 11 terminal locations 1219 | -8/Materials | Identified exit to Storage 1317 | -8/Materials | Discovered new exit (range 16) 1329 | -8/Materials | Entered Factory 1329 | -7/Factory | Evolved 2 slots: Utility x2 1358 | -7/Factory | Identified exit to Lower Caves 1418 | -7/Factory | Identified exit to Factory 1717 | -7/Factory | Entered Lower Caves 1823 | -7/Lower Caves | Encountered a Warlord checkpoint 1915 | -7/Lower Caves | Spotted B-75 Beast 1947 | -7/Lower Caves | Build established: Infiltrator-Mutant 1970 | -7/Lower Caves | Learned Factory security intel 1970 | -7/Lower Caves | Learned Factory trap positions 2031 | -7/Lower Caves | Discovered new exit (range 8) 2034 | -7/Lower Caves | Entered another Lower Caves area 2034 | -7/Lower Caves | Spotted B-75 Beast 2092 | -7/Lower Caves | Discovered exit to Factory (range 11) 2138 | -7/Lower Caves | Encountered a Warlord checkpoint 2160 | -7/Lower Caves | Attracted the attention of an 0b10 outpost 2212 | -7/Lower Caves | Learned 8 Factory zone layouts 2212 | -7/Lower Caves | Discovered new exit (range 11) 2217 | -7/Lower Caves | Entered Data Miner 2217 | -7/Data Miner | Discovered new exit (range 6) 2227 | -7/Data Miner | Met Data Miner 2242 | -7/Data Miner | Learned location of Section 7 (-2) 2242 | -7/Data Miner | Acquired the access code to Warlord's prototype stash 2250 | -7/Data Miner | Received God Mode back door access code from Data Miner 2261 | -7/Data Miner | Entered Proximity Caves 2279 | -6/Proximity Caves | Escorted by Enhanced Grunt 2367 | -6/Proximity Caves | Found Alien Artifact 2367 | -6/Proximity Caves | Identified Dimensional Node Initializer 2367 | -6/Proximity Caves | Initialized slip node 2398 | -6/Proximity Caves | Learned 4 Factory zone layouts 2427 | -6/Proximity Caves | Build established: Hacker-Mutant 2472 | -6/Proximity Caves | Entered a huge 0b10 base via the front door 2472 | -6/Proximity Caves | Spotted B-75 Beast 2537 | -6/Proximity Caves | Attracted the attention of an 0b10 outpost 2554 | -6/Proximity Caves | Derelicts attacked a huge 0b10 base 2563 | -6/Proximity Caves | Discovered exit to Factory (range 16) 2586 | -6/Proximity Caves | Entered Factory 2586 | -6/Factory | Evolved 2 slots: Utility x2 2587 | -6/Factory | Identified exit to Factory 2588 | -6/Factory | Loaded intel: 97 trap records 2788 | -6/Factory | Discovered exit to Factory (range 15) 2849 | -6/Factory | Found Hvy. Reflective Plating 2882 | -6/Factory | Discovered exit to Factory (range 16) 2907 | -6/Factory | Repaired Structural Scanner? 3382 | -6/Factory | Build established: Hacker-Scout 3438 | -6/Factory | Identified exit to Lower Caves 3501 | -6/Factory | Entered Lower Caves 3573 | -6/Lower Caves | Learned location of Extension (-5) 3612 | -6/Lower Caves | Found Prototype Device 3745 | -6/Lower Caves | Learned location of 2 exits from Factory 3773 | -6/Lower Caves | Discovered new exit (range 11) 3803 | -6/Lower Caves | Build established: Hacker-Mutant 3803 | -6/Lower Caves | Entered another Lower Caves area 3870 | -6/Lower Caves | Attracted the attention of an 0b10 checkpoint 3953 | -6/Lower Caves | Discovered new exit (range 17) 3962 | -6/Lower Caves | Entered Zion 4037 | -6/Zion | Found CR-A16's Pointy Stick 4058 | -6/Zion | Learned location of Quarantine (-3) 4067 | -6/Zion | Given A8's code to call for help 4126 | -6/Zion | Learned Factory stockpile data 4129 | -6/Zion | Identified exit to Proximity Caves 4153 | -6/Zion | Rebuked by Imprinter 4297 | -6/Zion | Entered Proximity Caves 4536 | -5/Proximity Caves | Attracted the attention of an 0b10 checkpoint 4543 | -5/Proximity Caves | Received a Behemoth hack from an annoying Tinkerer 4745 | -5/Proximity Caves | Identified Heart of Steel 4856 | -5/Proximity Caves | Discovered exit to Factory (range 7) 4859 | -5/Proximity Caves | Entered Factory 4859 | -5/Factory | Evolved 2 slots: Utility x2 4860 | -5/Factory | Identified exit to Factory 4887 | -5/Factory | Incoming investigation squad redirected 4955 | -5/Factory | Identified exit to Upper Caves 4955 | -5/Factory | Identified exit to Extension 4978 | -5/Factory | Fabricated Impulse Thruster? 5139 | -5/Factory | Core integrity fell below 50% 5187 | -5/Factory | Core integrity fell below 20% 5198 | -5/Factory | Entered Upper Caves 5290 | -5/Upper Caves | Encountered a Warlord checkpoint 5314 | -5/Upper Caves | Discovered new exit (range 5) 5316 | -5/Upper Caves | Identified exit to Upper Caves 5322 | -5/Upper Caves | Entered another Upper Caves area 5359 | -5/Upper Caves | Encountered a Warlord checkpoint 5374 | -5/Upper Caves | Learned Factory terminal intel 5410 | -5/Upper Caves | Build established: Mutant 5447 | -5/Upper Caves | Discovered new exit (range 7) 5450 | -5/Upper Caves | Identified exit to Zhirov 5461 | -5/Upper Caves | Entered Zhirov 5461 | -5/Zhirov | Discovered new exit (range 3) 5462 | -5/Zhirov | Identified exit to Proximity Caves 5482 | -5/Zhirov | Met Zhirov 5492 | -5/Zhirov | Learned location of Testing (-2) 5492 | -5/Zhirov | Learned location of Command (-1) 5503 | -5/Zhirov | Zhirov requested help retrieving the SGEMP Prototype 5512 | -5/Zhirov | Found Alien Artifact 5512 | -5/Zhirov | Identified Integrated Dissipator 5512 | -5/Zhirov | Installed Integrated Dissipator, increased core heat dissipation (+20) 5521 | -5/Zhirov | Found Alien Artifact 5609 | -5/Zhirov | Entered Proximity Caves 5677 | -4/Proximity Caves | Destroyed by H-77 Assassin with High-powered Shotgun Last Messages --------------- 05554_ Attempting to rewire B-86 Titan. 05554_ B-86 Titan is broken beyond repair. 05555_ Attempting to rewire B-86 Titan. 05555_ B-86 Titan is broken beyond repair. 05558_ Attempting to rewire 0W-SCA(t). 05558_ 0W-SCA(t) is broken beyond repair. 05559_ System corrupted: Substantial component data lost. 05559_ Attempting to rewire O-32 Director. 05559_ O-32 Director is broken beyond repair. 05576_ Zhirov uses his terminal. 05588_ System corrupted: Energy discharge (-71). 05596_ Zhirov uses his terminal. LOCATION=PROXIMITY CAVES GOAL=ESCAPE 05609_ Dropped F-cell Engine. 05610_ Dropped Adv. Actuator Array. 05612_ Dropped Imp. Matter Compressor. 05643_ System corrupted: Matter fused (-6). 05652_ Acquired Imp. Matter Compressor. 05660_ S<0 QINPQWOY14KDAKMT6B2KNVMJ Map ----- +----------------------------------------------------+ | ?????????????????????????????????????????????????? | | ?????????????????????????????????????????????????? | | ?????????????????????????????????????????????????? | | ?????????????????????????????????????????????????? | | ?????????????????????????????????????????????????? | | ?????????????????????????????????????????????????? | | ?????????????????????????????????????????????????? | | ?????????????????????????????????????????????????? | | ?????????????????????????????????????????????????? | | ?????????????????????????????????????????????????? | | ?????????????????????????????????????????????????? | | ?????????????????????????????????????????????????? | | ?????????????????????????????????????????????????? | | ?????????????????????????????????????????????????? | | ?????????????????????????????????????????????????? | | ?????????????????????????????????????????????????? | | ?????????????????????????????????????????????????? | | ?????????????????????????????????????????????????? | | ?????????????????????????????????????????????????? | | ?????????????????????????????#####???????????????? | | ???????????????????????????### ##??????????????? | | ?????????????????????###??## #?########?????? | | ????????????????????## ### ### ##????? | | ???????????????????## ## ### #????? | | ????????????? ???# #;#### ### ##???? | | ?????????????# ## ##@##??# ## #### ##??? | | ?????????????# ???# ##?# ##??## #??? | | ????????????## ??## #### ##??## #??? | | ????????????# ## #### #### ##??? | | ???????????# #?# #???? | | ??????????? ???#### ### ## ##??? | | ???????????????????# ## ## #??? | | ??????????????????# # ##??? | | ??????????????????# ### ### ###?? | | ??????????????????# ??### h h #?### ##? | | ??????????????????### ????#### ##### #? | | ????????????????????# ???????## ## | | ????????????????????### ????????## # | | ??????????????????????# ?????????### ### # | | ?????????????????????? ????????????#####?# | | ?????????????????????????????????????????# # | | ?????????????????????????????????????????# !* # | | ?????????????????????????????????????????## # | | ??????????????????????????????????????????# ## | | ??????????????????????????????????????????## ####? | | ???????????????????????????????????????????###???? | | ?????????????????????????????????????????????????? | | ?????????????????????????????????????????????????? | | ?????????????????????????????????????????????????? | | ?????????????????????????????????????????????????? | +----------------------------------------------------+ Best States ------------- Heat Dissipation 60 Energy Generation 25 Energy Capacity 500 Matter Stores 300 Matter Capacity 600 Sight Range 16 Terrain Scan Range 20 Terrain Scan Density 210 ECM Strength 1 Jamming Range 8 Additional Mass Support 6 Armor Coverage 450 Evasion (%) 66 Melee Accuracy 8 Core Analysis 8 Offensive Hacking 35 Defensive Hacking 14 Item Schematics ----------------- Combat Drone Bay | -7/Data Miner | Free Lgt. Regenerative Plating | -7/Data Miner | Free Biomechanical Wings | -7/Data Miner | Free Thermal Defense Suite | -7/Data Miner | Free Antimatter Cannon | -7/Data Miner | Free Linear Gravjet | -7/Data Miner | Free Imp. Component Analysis Suite | -7/Data Miner | Free Imp. Plasma Cutter | -7/Data Miner | Free Cmb. Gravmag System | -7/Data Miner | Free Adv. System Shield | -7/Data Miner | Free Reaction Control System | -7/Data Miner | Free Micro-nuke Launcher | -7/Data Miner | Free Drone Bay | -6/Zion | Archive Hvy. Phase Cannon | -6/Zion | Archive Imp. Hardlight Generator | -6/Zion | Archive Imp. Kinecellerator | -6/Zion | Archive Hvy. Flak Cannon | -6/Zion | Archive Impulse Thruster | -6/Zion | Archive System Restoration Module | -6/Zion | Archive Imp. Thermal Generator | -6/Zion | Archive Adv. Terrain Scanner | -6/Zion | Archive Enh. Gauss Cannon | -6/Zion | Archive Imp. Core Shielding | -6/Zion | Archive Lyr. Heavy Armor Plating | -6/Zion | Archive Railgun | -6/Zion | Archive Assault Drone Bay | -5/Zhirov | Free Exp. Heat Sink | -5/Zhirov | Free Exp. Optical Array | -5/Zhirov | Free Imp. Arc Thrower | -5/Zhirov | Free Robot Schematics ------------------ M-28 Smith | -7/Data Miner | Free A-15 Conveyor | -7/Data Miner | Free E-15 Imp | -7/Data Miner | Free L-41 Fighter | -6/Zion | Archive A-02 Transporter | -6/Zion | Archive T-07 Excavator | -6/Zion | Archive C-57 Dissector | -6/Zion | Archive Fabricated ------------ Impulse Thruster | x2 | -5/Factory Alien Tech Used ----------------- Dimensional Node Initializer Integrated Dissipator Achievements -------------- None Challenges ------------ None Game ------ Seed ContainmentLauncherSpear Manual? 0 Play Time 01:50:29 Cumulative 63.2 hours Start 2021.11.23 @ 22:18:26 End 2021.11.24 @ 00:12:35 Sessions 1 Manual Loads 0 Difficulty Rogue Special Mode None Game No. 34 Rogue 32 Adventurer 2 Explorer 0 Win Type - Total 2 Types 2/0/0/0/0/0/0/0/0 Lore% 46 Gallery% 57 Achievement% 47 Wizard Run 0 Options --------- ASCII 0 Keyboard 0 Movement Numpad Keybinds 0 Fullscreen 2 Font 24/Smallcaps Map View 76x50 Tactical HUD 1 Map Filters NONE Filters NONE Steam 1 RUN: a32b84be-c59d-4038-91b5-908488eac004